bitfinex-derivatives/quotes_ETHF0:USTF0_20260316
["timestamp","ask_amount","ask_price","bid_price","bid_amount"]
[1773672720836,8.04517529,2264.4,2263.5,8.27706704]
[1773672722041,0.00545032,2264.4,2263.5,8.27706704]
[1773672722242,0.00545032,2264.4,2263.7,8.27204135]
[1773672722543,8.03972497,2265.4,2264.3,8.27204135]
[1773672722839,8.03972497,2265.4,2264.5,8.27204135]
[1773672723043,8.03972497,2265.4,2263.9,8.27204135]
[1773672723246,8.03972497,2265.4,2264.4,8.27204135]
[1773672723443,8.04516292,2265.4,2264.4,8.27204135]
[1773672723643,0.00543795,2265.4,2264.6,8.27204135]
[1773672724235,8.04516292,2265.4,2264.0,8.27204135]
[1773672724643,8.04516292,2265.4,2263.9,0.22081]
[1773672724644,0.00543795,2265.4,2264.4,8.27204135]
[1773672725041,0.00543795,2265.4,2264.6,8.27204135]
[1773672725845,8.25779696,2266.0,2264.8,8.27204135]
[1773672726049,8.25779696,2266.0,2264.5,8.83053]
[1773672726050,8.25779696,2266.0,2264.9,8.49276135]
[1773672726541,8.03972497,2266.0,2264.9,8.49276135]
[1773672726738,8.04350915,2266.0,2264.9,8.49276135]
[1773672726936,0.00378418,2266.0,2264.9,8.49276135]
[1773672727137,0.00378418,2266.0,2265.1,8.27204135]
[1773672727342,0.00378418,2266.0,2265.1,8.27662794]
[1773672728041,8.04350915,2266.0,2265.1,8.27662794]
[1773672729043,0.00378418,2266.0,2265.1,8.27662794]
[1773672729744,8.03972497,2266.4,2265.5,8.27204135]
[1773672729945,8.03972497,2266.9,2265.7,8.27204135]
[1773672730444,8.26025497,2266.9,2265.2,8.27204135]
[1773672730652,8.03972497,2266.9,2265.4,8.27204135]
[1773672730950,8.04496242,2266.9,2265.4,8.27204135]
[1773672731649,8.04496242,2266.9,2265.6,8.27204135]
[1773672732444,8.04496242,2266.9,2265.8,8.27204135]
[1773672732645,8.03972497,2267.2,2266.2,8.27204135]
[1773672732839,8.03972497,2268.8,2266.6,8.27204135]
[1773672733043,8.33803877,2268.8,2266.6,8.27204135]
[1773672733251,8.33803877,2268.8,2266.5,8.82285]
[1773672733252,8.33803877,2268.8,2267.0,8.27204135]
[1773672733450,8.55789076,2268.8,2267.0,8.27204135]
[1773672733650,8.03972497,2268.6,2267.0,8.27204135]
[1773672733840,8.03972497,2268.4,2267.0,8.27751461]
[1773672734248,8.03972497,2268.4,2267.4,8.27204135]
[1773672734441,8.03972497,2268.4,2267.0,0.00547326]
[1773672734647,8.03972497,2268.4,2267.0,8.27751461]
[1773672734846,8.03972497,2268.2,2267.0,0.00547326]
[1773672735544,8.03972497,2268.0,2267.0,0.00547326]
[1773672736147,8.03972497,2268.0,2267.0,8.27751461]
[1773672737546,8.03972497,2268.3,2267.0,8.27751461]
[1773672738440,8.03972497,2268.3,2267.1,8.49255135]
[1773672738648,8.03972497,2268.3,2267.1,8.27204135]
[1773672739351,8.03972497,2268.7,2267.1,8.27204135]
[1773672739552,8.03972497,2268.7,2267.3,8.27204135]
[1773672742245,8.03972497,2268.5,2267.0,0.00547326]
[1773672742553,8.24367213,2267.9,2266.4,8.40697835]
[1773672742853,8.24367213,2267.5,2266.1,8.40697835]
[1773672743546,8.24367213,2267.5,2266.1,8.41181094]
[1773672744251,8.24367213,2267.5,2266.3,8.40697835]
[1773672746255,8.24367213,2267.5,2266.5,8.40697835]
[1773672746655,9.11269846,2268.8,2266.9,8.40697835]
[1773672746656,8.24367213,2268.1,2266.9,8.40697835]
[1773672747257,8.24367213,2268.1,2266.3,8.40697835]
[1773672747552,8.24367213,2268.1,2266.4,8.40697835]
[1773672748754,8.24367213,2268.1,2266.8,8.40697835]
[1773672749354,8.24367213,2268.1,2266.2,8.40697835]
[1773672749556,8.46408213,2268.1,2266.5,8.40697835]
[1773672750052,8.46408213,2268.1,2266.4,0.22058]
[1773672750053,8.24367213,2268.1,2266.7,8.40697835]
[1773672750253,8.24367213,2268.1,2266.8,0.22054]
[1773672750463,8.24367213,2268.1,2266.9,8.40697835]
[1773672750854,8.24367213,2268.1,2267.0,8.62749835]
[1773672751251,8.24367213,2268.1,2267.0,8.40697835]
[1773672751452,8.24367213,2268.1,2266.5,0.22056]
[1773672751453,8.24367213,2268.1,2266.6,8.40697835]
[1773672752158,8.24367213,2268.1,2266.8,8.40697835]
[1773672752357,8.24367213,2268.1,2266.3,8.82348]
[1773672752358,8.24367213,2268.1,2267.0,8.40697835]
[1773672753650,8.24367213,2268.1,2266.6,8.244]
[1773672753857,8.24367213,2268.1,2266.7,8.62751835]
[1773672755954,8.24367213,2268.6,2267.6,8.40697835]
[1773672757861,8.24367213,2268.6,2267.1,8.40697835]
[1773672758465,8.46405213,2268.4,2267.0,8.243]
[1773672758652,8.46405213,2268.4,2266.8,8.40697835]
[1773672758853,8.24367213,2268.4,2267.2,8.40697835]
[1773672759160,8.24367213,2268.4,2267.6,8.40697835]
[1773672760959,8.24367213,2268.4,2267.5,0.22047]
[1773672761362,8.24367213,2268.4,2267.3,8.40697835]
[1773672761558,8.24367213,2268.2,2266.5,0.22056]
[1773672761763,8.24367213,2268.2,2266.6,8.40697835]
[1773672761965,8.24367213,2268.0,2266.6,8.40697835]
[1773672762262,8.24367213,2267.9,2266.6,8.40697835]
[1773672762463,8.24367213,2267.9,2266.8,8.40697835]
[1773672762766,8.24367213,2267.9,2267.2,8.40697835]
[1773672763165,8.24367213,2268.5,2267.2,8.40697835]
[1773672763366,8.24367213,2268.7,2267.3,8.62746835]
[1773672763566,8.24367213,2268.7,2267.8,8.40697835]
[1773672763767,8.24367213,2268.7,2267.8,8.41104454]
[1773672765469,8.24367213,2268.7,2267.8,0.00406619]
[1773672766270,8.24367213,2268.7,2267.8,8.41104454]
[1773672766673,0.2203,2269.3,2267.8,8.41104454]
[1773672766674,8.24367213,2269.1,2268.0,8.40697835]
[1773672767273,8.24367213,2268.9,2267.8,8.41104454]
[1773672767573,8.24367213,2268.7,2267.8,0.00406619]
[1773672767877,8.24367213,2268.5,2267.3,8.40697835]
[1773672768374,8.24367213,2268.5,2266.8,8.40697835]
[1773672768575,8.24367213,2268.3,2266.8,8.40697835]
[1773672768776,8.24367213,2268.1,2266.8,8.40697835]
[1773672769070,8.24367213,2268.1,2266.8,8.41155033]
[1773672769667,8.24367213,2268.1,2266.8,8.63208033]
[1773672769867,8.24367213,2268.1,2267.4,8.40697835]
[1773672770067,7.772,2268.2,2267.4,8.40697835]
[1773672770275,8.24367213,2268.4,2267.4,8.40697835]
[1773672770475,8.24367213,2268.4,2266.8,17.06891198]
[1773672770476,8.24367213,2268.4,2267.1,8.40697835]
[1773672773385,8.29550097,2268.2,2267.1,8.40697835]
[1773672773984,8.29550097,2268.2,2267.3,8.34131482]
[1773672774176,0.00308882,2268.7,2267.4,0.22048]
[1773672774378,0.00308882,2268.7,2267.7,8.34131482]
[1773672774578,0.00308882,2268.7,2267.9,8.34131482]
[1773672774780,8.29550097,2269.2,2267.9,8.34131482]
[1773672774980,8.29550097,2269.2,2268.3,8.34131482]
[1773672775285,7.775,2269.4,2268.5,8.34131482]
[1773672775778,8.29961605,2269.4,2268.5,8.34463518]
[1773672775980,16.07461605,2269.4,2268.5,8.34463518]
[1773672776176,8.29961605,2269.4,2268.5,8.34463518]
[1773672776577,0.00411508,2269.4,2268.5,8.34463518]
[1773672776773,8.29961605,2269.4,2268.5,8.34463518]
[1773672778082,8.29961605,2269.4,2268.5,0.00332036]
[1773672779285,8.29550097,2269.2,2268.0,8.34131482]
[1773672779580,8.29550097,2269.0,2267.8,8.34131482]
[1773672779981,16.07250097,2268.9,2267.8,8.34131482]
[1773672780180,8.29550097,2268.9,2267.8,8.34131482]
[1773672780386,7.777,2268.8,2267.8,8.34634731]
[1773672780588,8.29550097,2269.1,2268.2,8.34131482]
[1773672780882,7.777,2269.3,2268.2,8.34131482]
[1773672781086,16.07250097,2269.3,2268.2,8.34131482]
[1773672781287,16.07250097,2269.2,2268.2,8.34131482]
[1773672781684,8.29550097,2269.1,2268.2,8.34131482]
[1773672782987,7.778,2269.1,2268.2,8.34131482]
[1773672783187,16.07350097,2269.1,2268.2,8.34131482]
[1773672783988,8.29550097,2269.0,2268.2,8.34131482]
[1773672784187,8.29550097,2269.0,2267.9,8.34131482]
[1773672787290,0.00411508,2269.4,2267.8,0.00503249]
[1773672787291,0.00411508,2269.4,2268.1,8.34131482]
[1773672787487,0.00411508,2269.4,2268.5,8.34131482]
[1773672787887,0.00411508,2269.4,2268.7,8.34131482]
[1773672788088,8.29961605,2269.4,2268.2,8.34131482]
[1773672788490,8.29550097,2269.2,2268.2,8.34131482]
[1773672788787,8.29550097,2269.0,2267.9,8.34131482]
[1773672789595,8.29550097,2268.8,2267.8,0.00503249]
[1773672789795,8.29550097,2268.6,2267.8,0.00503249]
[1773672790099,8.29550097,2269.3,2267.8,8.34634731]
[1773672790288,8.29550097,2269.1,2267.8,8.34634731]
[1773672790595,8.29550097,2269.1,2267.8,0.00503249]
[1773672790893,8.29550097,2268.9,2267.8,8.34634731]
[1773672791091,16.07650097,2268.8,2267.8,8.34634731]
[1773672791393,7.781,2268.7,2267.8,8.34634731]
[1773672791690,8.29550097,2268.6,2267.8,0.00503249]
[1773672792395,8.29550097,2268.4,2267.8,0.00503249]
[1773672792591,8.29550097,2268.2,2267.4,8.34131482]
[1773672792795,7.782,2268.3,2267.4,8.34131482]
[1773672792989,8.29550097,2268.4,2267.5,0.22047]
[1773672793192,16.07750097,2268.8,2267.8,8.34131482]
[1773672793392,8.29550097,2268.8,2267.8,8.34131482]
[1773672793598,8.29550097,2269.3,2268.2,8.34131482]
[1773672793792,0.00411508,2269.4,2268.2,8.34131482]
[1773672793793,16.07750097,2269.2,2268.2,8.34131482]
[1773672793993,8.29550097,2269.1,2268.2,8.34131482]
[1773672794391,8.29550097,2269.1,2268.1,0.22041]
[1773672794594,8.29550097,2269.1,2268.0,8.34131482]
[1773672795699,8.29550097,2268.9,2268.0,8.34131482]
[1773672796389,16.07950097,2268.8,2268.0,8.34131482]
[1773672796797,8.29550097,2268.8,2268.0,8.34131482]
[1773672796991,7.784,2268.7,2268.0,8.34131482]
[1773672797593,16.07950097,2268.7,2268.0,8.34131482]
[1773672798893,8.29550097,2268.7,2268.0,8.34131482]
[1773672799391,8.29550097,2269.3,2268.2,8.34131482]
[1773672799597,16.08150097,2269.2,2268.2,8.34131482]
[1773672799797,8.29550097,2269.1,2268.2,8.34131482]
[1773672800301,8.29550097,2268.9,2267.9,8.34131482]
[1773672801106,7.788,2268.8,2268.1,8.34131482]
[1773672801397,16.08350097,2268.8,2268.1,8.34131482]
[1773672801596,8.29550097,2268.7,2268.1,8.34131482]
[1773672801797,8.29550097,2268.7,2267.8,8.34685206]
[1773672802398,8.29550097,2268.7,2268.0,8.17298667]
[1773672802800,16.08450097,2268.7,2268.0,8.17298667]
[1773672803597,16.08450097,2268.7,2268.1,0.22041]
[1773672803799,8.29550097,2268.7,2268.2,8.17298667]
[1773672804000,16.08650097,2268.7,2268.2,8.17298667]
[1773672804298,7.791,2268.7,2268.2,8.17298667]
[1773672804899,7.792,2269.0,2268.2,8.17298667]
[1773672805900,7.56995447,2269.2,2268.2,8.17298667]
[1773672806105,15.36395447,2269.1,2268.2,8.17298667]
[1773672806399,0.00411508,2269.4,2268.2,8.17298667]
[1773672806603,0.00411508,2269.4,2268.4,8.17298667]
[1773672806797,0.00411508,2269.4,2268.6,8.17298667]
[1773672807099,7.57406955,2269.4,2268.2,8.17298667]
[1773672807902,7.57406955,2269.4,2268.4,8.17298667]
[1773672808100,0.00411508,2269.4,2268.7,0.22035]
[1773672808300,7.56995447,2270.0,2268.8,8.17298667]
[1773672808500,7.56995447,2269.8,2268.8,8.17298667]
[1773672808801,15.36795447,2270.4,2269.0,8.17298667]
[1773672809008,7.56995447,2270.3,2269.0,8.17298667]
[1773672809198,7.57496725,2270.3,2269.0,8.17298667]
[1773672809396,15.36795447,2270.2,2269.0,8.17298667]
[1773672810199,0.00501278,2270.3,2269.1,0.22031]
[1773672810399,7.57496725,2270.3,2269.4,8.17298667]
[1773672810599,7.57496725,2270.3,2269.4,8.17750271]
[1773672811005,0.00501278,2270.3,2269.4,8.17750271]
[1773672811704,7.80501278,2270.3,2269.4,8.17750271]
[1773672812006,7.80501278,2270.3,2268.3,11.49662671]
[1773672812007,7.56995447,2270.2,2269.1,8.17298667]
[1773672812203,7.56995447,2269.8,2268.5,8.17298667]
[1773672812504,7.56995447,2269.6,2268.5,8.17298667]
[1773672812704,15.36995447,2269.5,2268.5,8.17298667]
[1773672812907,7.56995447,2269.5,2268.5,8.17298667]
[1773672813108,7.56995447,2269.6,2268.5,8.17821026]
[1773672813301,7.56995447,2269.4,2268.5,8.17821026]
[1773672814002,7.56995447,2270.1,2268.7,8.17298667]
[1773672814300,0.21733249,2270.2,2268.9,8.17298667]
[1773672814301,7.56995447,2269.9,2268.9,8.17298667]
[1773672815103,7.56995447,2270.1,2269.1,8.17298667]
[1773672816110,7.56995447,2269.9,2269.1,8.17298667]
[1773672816309,15.37195447,2269.9,2269.1,8.17298667]
[1773672816509,7.56995447,2269.8,2268.6,8.17298667]
[1773672818607,15.37295447,2269.7,2268.6,8.17298667]
[1773672818803,7.56995447,2269.7,2268.6,8.17298667]
[1773672819008,7.803,2269.6,2268.6,8.17298667]
[1773672819210,7.803,2269.6,2268.8,8.17298667]
[1773672819807,0.00501278,2270.3,2268.8,8.17298667]
[1773672820008,7.56995447,2270.1,2269.0,8.17298667]
[1773672820208,7.56995447,2270.1,2268.5,0.00522359]
[1773672820209,7.56995447,2270.1,2268.6,8.17298667]
[1773672820807,7.56995447,2269.9,2268.6,8.17298667]
[1773672822308,7.56995447,2269.5,2268.5,0.00522359]
[1773672822514,7.56995447,2269.3,2268.5,0.00522359]
[1773672824010,7.806,2269.2,2268.5,8.17821026]
[1773672824411,7.56995447,2269.1,2268.5,8.17821026]
[1773672825716,15.37695447,2269.5,2268.5,8.17821026]
[1773672825916,7.56995447,2269.5,2268.5,8.17821026]
[1773672826108,7.808,2269.4,2268.5,8.17821026]
[1773672826515,7.56995447,2269.7,2268.5,8.17821026]
[1773672826714,7.56995447,2269.7,2268.7,8.17298667]
[1773672826715,15.37795447,2269.7,2268.7,8.17298667]
[1773672827215,7.808,2269.7,2268.7,8.17298667]
[1773672827407,7.56995447,2269.9,2269.1,8.17298667]
[1773672827613,7.56995447,2269.9,2268.6,8.17298667]
[1773672828812,7.811,2269.8,2268.6,8.17298667]
[1773672829014,7.56995447,2269.7,2268.6,8.17298667]
[1773672829915,7.812,2269.6,2268.8,8.17298667]
[1773672830718,7.56995447,2269.7,2268.8,8.17298667]
[1773672830922,15.38295447,2269.7,2268.8,8.17298667]
[1773672831221,7.56995447,2269.7,2269.0,8.17298667]
[1773672831518,7.56995447,2270.0,2269.2,8.17298667]
[1773672831719,7.56995447,2270.2,2269.4,8.17298667]
[1773672832019,0.00501278,2270.3,2269.4,8.17298667]
[1773672832219,7.57496725,2270.3,2269.4,8.17298667]
[1773672832816,0.00501278,2270.3,2269.6,8.11816556]
[1773672833022,7.63607871,2270.8,2269.6,8.11816556]
[1773672833717,0.65603301,2271.0,2269.6,8.11816556]
[1773672833918,0.65603301,2271.0,2269.1,8.81263]
[1773672833919,8.22080581,2271.0,2270.0,7.60962876]
[1773672834121,8.22080581,2271.0,2269.8,7.60962876]
[1773672834316,8.51684805,2271.0,2269.8,7.60962876]
[1773672834516,7.56059429,2270.6,2269.1,7.60962876]
[1773672834813,7.816,2270.5,2269.3,7.60962876]
[1773672835013,7.56059429,2270.6,2269.5,7.60962876]
[1773672835521,7.56059429,2270.9,2269.7,7.60962876]
[1773672835721,8.22080581,2271.0,2269.9,7.60962876]
[1773672836116,7.56059429,2270.8,2269.6,7.60962876]
[1773672837622,7.56059429,2270.6,2269.6,7.60962876]
[1773672838325,7.817,2270.5,2269.6,7.60962876]
[1773672838718,15.37759429,2270.6,2269.6,7.60962876]
[1773672839013,15.37859429,2270.6,2269.6,7.60962876]
[1773672839417,7.56059429,2270.6,2269.6,7.60962876]
[1773672840215,7.56059429,2270.9,2269.6,7.60962876]
[1773672840421,7.56059429,2270.8,2269.6,7.60962876]
[1773672842926,7.818,2270.9,2268.8,8.198]
[1773672842927,7.56059429,2270.6,2269.3,7.60962876]
[1773672844326,7.56059429,2270.4,2268.9,7.60962876]
[1773672844527,7.56059429,2270.2,2268.9,7.60962876]
[1773672848324,7.56059429,2270.0,2268.9,7.60962876]
[1773672849531,7.56059429,2270.2,2269.1,7.60962876]
[1773672850125,7.56059429,2270.4,2269.3,7.60962876]
[1773672851131,7.56059429,2270.4,2269.5,7.60962876]
[1773672855632,7.56059429,2270.2,2269.5,7.60962876]
[1773672855836,7.56059429,2270.2,2269.3,7.60962876]
[1773672858938,7.56059429,2270.0,2269.3,7.60962876]
[1773672859127,15.39059429,2269.9,2269.3,7.60962876]
[1773672859939,7.56059429,2269.8,2269.3,7.60962876]
[1773672860540,7.56059429,2269.8,2269.2,0.5]
[1773672860741,7.56059429,2269.8,2268.4,8.187]
[1773672860742,7.56059429,2269.8,2268.9,7.60962876]
[1773672861636,7.56059429,2269.8,2268.5,7.61485235]
[1773672861838,7.56059429,2269.6,2268.5,7.61485235]
[1773672862831,7.70533877,2269.4,2268.5,7.61485235]
[1773672863035,7.70948922,2269.4,2268.5,7.61485235]
[1773672863942,7.84015045,2269.4,2268.5,7.61485235]
[1773672864637,15.54548922,2269.4,2268.5,7.61485235]
[1773672865842,7.70948922,2269.4,2268.5,7.61485235]
[1773672866043,15.54848922,2269.4,2268.5,7.61485235]
[1773672866243,7.70533877,2269.3,2268.5,7.61485235]
[1773672866445,7.70533877,2269.2,2268.5,7.61485235]
[1773672866745,7.70533877,2269.2,2268.3,7.5839802]
[1773672866939,7.70948922,2269.4,2268.3,7.5839802]
[1773672867745,7.70948922,2269.4,2268.3,7.58881459]
[1773672868341,0.00415045,2269.4,2268.5,7.5839802]
[1773672868947,7.70533877,2270.0,2269.1,7.5839802]
[1773672869140,7.70533877,2269.9,2269.1,7.5839802]
[1773672869745,7.71042964,2269.9,2269.1,7.5839802]
[1773672869947,5.5881545,2270.8,2268.3,0.00483439]
[1773672869948,7.70533877,2270.4,2269.3,7.5839802]
[1773672870850,7.70845132,2270.4,2269.3,7.5839802]
[1773672872051,7.70533877,2270.3,2269.3,7.5839802]
[1773672872853,7.84811255,2270.4,2269.3,7.5839802]
[1773672873053,7.70533877,2270.3,2269.3,7.5839802]
[1773672873252,0.00311255,2270.4,2269.5,7.5839802]
[1773672873753,7.70845132,2270.4,2269.5,7.5839802]
[1773672875862,7.70845132,2270.4,2268.3,0.00483439]
[1773672875863,7.92864132,2270.4,2269.0,7.5839802]
[1773672876658,7.70533877,2270.2,2269.0,7.5839802]
[1773672877362,7.70533877,2270.2,2269.2,7.5839802]
[1773672877560,7.70533877,2270.3,2269.4,7.5839802]
[1773672878160,7.85111255,2270.4,2269.4,7.5839802]
[1773672878362,15.55645132,2270.4,2269.4,7.5839802]
[1773672878562,7.70845132,2270.4,2269.6,7.5839802]
[1773672879266,0.65603301,2271.0,2270.0,7.5839802]
[1773672879456,0.29054387,2271.0,2270.4,7.5839802]
[1773672880260,0.29625507,2271.0,2270.4,7.58950688]
[1773672881359,8.00159384,2271.0,2270.4,7.58950688]
[1773672881764,7.70533877,2272.0,2270.4,7.58950688]
[1773672881963,7.70533877,2271.8,2270.4,7.58950688]
[1773672882467,7.70533877,2271.8,2270.6,7.5839802]
[1773672882967,8.00406845,2271.8,2270.6,7.5839802]
[1773672883668,7.70884059,2271.8,2270.6,7.5839802]
[1773672883861,7.70533877,2271.7,2270.6,7.5839802]
[1773672884661,7.70884059,2271.8,2270.6,7.5839802]
[1773672884868,0.22001,2272.2,2271.0,7.5839802]
[1773672884869,7.70533877,2272.2,2271.0,7.5839802]
[1773672885970,7.70908981,2272.2,2271.0,7.5839802]
[1773672886166,7.70533877,2272.0,2270.5,7.5839802]
[1773672886568,7.70533877,2271.8,2270.5,7.5839802]
[1773672887170,7.70533877,2271.6,2270.5,7.5839802]
[1773672888770,7.70533877,2271.8,2270.5,7.5839802]
[1773672888969,7.70533877,2271.7,2270.5,7.5839802]
[1773672889473,7.70533877,2271.9,2270.6,0.22017]
[1773672889768,7.70533877,2271.9,2270.9,7.5839802]
[1773672889969,0.00375104,2272.2,2271.1,7.5839802]
[1773672890672,7.70908981,2272.2,2271.1,7.5839802]
[1773672891268,9.01444,2273.8,2271.9,7.5839802]
[1773672891568,7.70533877,2273.1,2271.9,7.5839802]
[1773672891765,7.70533877,2273.0,2271.9,7.5839802]
[1773672892166,7.70533877,2272.8,2271.9,7.5839802]
[1773672892768,7.70533877,2272.8,2271.3,8.00631495]
[1773672893371,7.9024327,2272.9,2271.3,8.00631495]
[1773672893767,7.9024327,2272.9,2271.4,4.7644312]
[1773672893968,7.9024327,2272.9,2271.5,7.6947594]
[1773672895073,0.00437221,2273.0,2271.9,7.6947594]
[1773672895280,7.90680491,2273.0,2271.9,7.6947594]
[1773672899070,7.9024327,2272.8,2271.9,7.6947594]
[1773672899281,7.9024327,2272.6,2271.2,7.6947594]
[1773672899477,7.9024327,2272.4,2271.2,7.6947594]
[1773672900977,7.9024327,2272.2,2271.2,7.6947594]
[1773672901876,7.9024327,2272.2,2270.7,7.6947594]
[1773672902176,7.9024327,2272.0,2270.7,7.6947594]
[1773672902473,15.7434327,2271.9,2270.7,7.6947594]
[1773672902680,7.9024327,2271.7,2270.7,7.6947594]
[1773672902876,15.7434327,2271.6,2270.7,7.6947594]
[1773672903479,7.9024327,2271.5,2270.7,7.6947594]
[1773672905082,7.9024327,2271.5,2270.5,7.6947594]
[1773672905480,15.7444327,2271.5,2270.5,7.6947594]
[1773672906078,7.9024327,2271.4,2270.5,7.6947594]
[1773672906279,7.90801529,2271.4,2270.5,7.6947594]
[1773672907377,7.90801529,2271.4,2270.4,7.70028608]
[1773672907583,15.7454327,2271.3,2270.4,7.70028608]
[1773672907788,0.00558259,2271.4,2270.4,7.92047608]
[1773672908082,7.9024327,2271.3,2270.4,7.70028608]
[1773672908481,7.9024327,2271.1,2270.4,7.70028608]
[1773672908882,7.9024327,2271.1,2270.4,0.00552668]
[1773672909689,15.7474327,2271.0,2270.4,0.00552668]
[1773672909985,0.29512248,2271.3,2270.3,7.6947594]
[1773672909986,15.7474327,2270.9,2270.3,7.6947594]
[1773672910183,7.846,2270.8,2270.3,7.6947594]
[1773672910383,7.90801529,2271.4,2270.3,7.9149594]
[1773672910585,7.85158259,2271.4,2270.3,7.9149594]
[1773672910780,0.00558259,2271.4,2270.8,7.6947594]
[1773672911084,7.846,2271.7,2270.8,7.6947594]
[1773672911485,7.9024327,2271.8,2270.8,7.6947594]
[1773672911786,7.847,2271.7,2270.8,7.6947594]
[1773672912090,7.9024327,2272.3,2271.4,7.6947594]
[1773672912682,7.9024327,2272.3,2270.9,7.6947594]
[1773672912987,7.9073685,2272.3,2270.9,7.6947594]
[1773672913886,7.9073685,2272.3,2271.3,7.6947594]
[1773672914083,0.0049358,2272.3,2271.5,7.6947594]
[1773672914782,0.0049358,2272.3,2271.7,7.6947594]
[1773672914988,7.9024327,2273.3,2271.9,7.6947594]
[1773672915191,7.9024327,2273.1,2271.9,7.6947594]
[1773672915487,7.85,2273.1,2272.3,7.6947594]
[1773672916092,7.9024327,2273.0,2272.3,7.6947594]
[1773672916790,7.9024327,2272.9,2272.3,7.6947594]
[1773672916989,15.7524327,2272.9,2272.3,7.6947594]
[1773672917387,7.9024327,2272.8,2271.6,0.22006]
[1773672917587,7.9024327,2272.8,2271.7,7.6947594]
[1773672917788,0.00457469,2273.1,2272.1,7.6947594]
[1773672917789,15.7524327,2273.0,2272.1,7.6947594]
[1773672918089,0.00457469,2273.1,2272.3,7.6947594]
[1773672919593,7.90700739,2273.1,2272.3,7.6947594]
[1773672919788,0.00457469,2273.1,2272.3,7.6947594]
[1773672921197,7.90700739,2273.1,2271.8,7.6947594]
[1773672921791,7.9024327,2272.9,2271.8,7.6947594]
[1773672922192,7.57403198,2272.7,2271.8,7.6947594]
[1773672922588,7.57403198,2272.7,2271.1,7.4822971]
[1773672923094,7.57403198,2272.7,2271.5,7.4822971]
[1773672923294,7.57403198,2272.7,2271.7,7.4822971]
[1773672923997,15.42503198,2272.7,2271.7,7.4822971]
[1773672925897,7.57403198,2272.7,2271.7,7.4822971]
[1773672926098,15.42503198,2272.7,2271.7,7.4822971]
[1773672926900,7.57403198,2272.6,2271.7,7.4822971]
[1773672928097,7.57403198,2272.6,2271.2,7.4822971]
[1773672929003,7.57403198,2272.4,2271.2,7.4822971]
[1773672929299,7.57403198,2272.2,2271.2,7.4822971]
[1773672929603,7.57403198,2272.0,2271.2,7.4822971]
[1773672930405,7.854,2271.9,2271.2,7.4822971]
[1773672930602,15.42803198,2271.9,2271.2,7.4822971]
[1773672930802,7.57403198,2271.8,2271.2,7.4822971]
[1773672931000,7.57403198,2271.8,2270.9,7.4822971]
[1773672931699,7.57403198,2272.4,2271.1,7.4822971]
[1773672931902,7.57403198,2272.2,2271.1,7.4822971]
[1773672932098,7.57403198,2272.0,2271.1,7.4822971]
[1773672932405,15.42903198,2271.9,2271.1,7.4822971]
[1773672932701,7.57403198,2271.8,2270.9,7.4822971]
[1773672933004,7.856,2271.7,2270.9,7.4822971]
[1773672933204,0.21999,2272.4,2270.9,7.4822971]
[1773672933205,7.57403198,2271.6,2270.9,7.4822971]
[1773672933403,7.57403198,2271.9,2270.9,7.4822971]
[1773672933601,7.857,2271.8,2270.9,7.4822971]
[1773672933898,7.57403198,2272.3,2271.4,7.4822971]
[1773672934206,7.57403198,2272.5,2271.6,7.4822971]
[1773672935004,7.57403198,2272.5,2271.1,7.4822971]
[1773672935405,7.57403198,2272.5,2271.3,7.4822971]
[1773672935606,15.43303198,2272.4,2271.3,7.4822971]
[1773672936006,7.57403198,2272.3,2271.3,7.4822971]
[1773672937002,7.57403198,2272.2,2271.3,7.4822971]
[1773672937203,7.57403198,2272.4,2271.3,7.4822971]
[1773672937603,7.86,2272.3,2271.5,7.4822971]
[1773672938511,7.86,2272.3,2270.9,8.80561]
[1773672938512,7.861,2272.6,2271.7,7.4822971]
[1773672938804,7.57403198,2272.6,2271.7,7.4822971]
[1773672939308,0.00457469,2273.1,2272.1,7.4822971]
[1773672939512,7.57860667,2273.1,2272.1,7.4822971]
[1773672940408,0.00457469,2273.1,2272.1,7.4822971]
[1773672942403,7.57860667,2273.1,2272.1,7.4822971]
[1773672943809,0.00457469,2273.1,2272.1,7.4822971]
[1773672944110,7.57403198,2273.6,2272.5,7.4822971]
[1773672944315,7.57403198,2273.8,2272.5,7.4822971]
[1773672944514,0.21777582,2273.9,2272.7,7.4822971]
[1773672944715,15.43603198,2274.0,2272.7,7.4822971]
[1773672944912,7.57403198,2273.9,2272.9,7.4822971]
[1773672945117,7.57973776,2273.9,2272.9,7.48674639]
[1773672945316,7.57973776,2273.9,2272.9,0.00444929]
[1773672945714,7.57973776,2273.9,2272.9,7.48674639]
[1773672945922,7.861,2273.8,2272.9,7.48674639]
[1773672946120,7.57403198,2273.8,2272.9,7.48674639]
[1773672946619,7.57403198,2273.8,2272.9,0.00444929]
[1773672947118,7.79390198,2273.8,2272.9,0.00444929]
[1773672948617,15.43503198,2273.8,2272.9,7.48674639]
[1773672948820,7.57403198,2273.7,2272.9,7.48674639]
[1773672949820,7.57403198,2273.7,2272.9,0.00444929]
[1773672950523,7.57403198,2273.5,2272.9,0.00444929]
[1773672950821,7.57403198,2273.5,2272.9,7.48674639]
[1773672951220,7.57403198,2273.5,2272.9,0.00444929]
[1773672951817,7.57403198,2273.3,2272.9,0.00444929]
[1773672952520,7.57403198,2273.3,2272.4,7.74587833]
[1773672952924,7.23613573,2273.2,2272.4,7.74587833]
[1773672953524,15.09913573,2273.2,2272.4,7.75149478]
[1773672953727,7.1601284,2273.1,2272.4,7.75149478]
[1773672953925,0.22555578,2273.9,2272.4,7.75149478]
[1773672954120,7.1601284,2273.7,2272.4,7.75149478]
[1773672954324,7.864,2273.6,2272.4,7.75149478]
[1773672954525,7.1601284,2273.5,2272.4,7.75149478]
[1773672957230,15.0271284,2273.5,2272.4,7.75149478]
[1773672957429,7.1601284,2273.4,2272.4,7.75149478]
[1773672957628,7.1601284,2273.8,2272.4,7.75149478]
[1773672957823,7.1601284,2273.6,2272.6,7.64308123]
[1773672958223,0.00570578,2273.9,2273.0,7.64308123]
[1773672958420,0.00570578,2273.9,2273.2,7.64308123]
[1773672960226,7.16583418,2273.9,2272.7,7.64308123]
[1773672960425,7.1601284,2274.4,2272.9,7.64308123]
[1773672960629,7.1601284,2274.4,2273.1,7.64308123]
[1773672961128,7.1601284,2274.2,2273.1,7.64308123]
[1773672961533,7.16443726,2274.2,2273.1,7.64308123]
[1773672962636,0.00430886,2274.2,2273.2,0.21992]
[1773672962929,3.58022023,2275.0,2273.7,7.64308123]
[1773672962930,7.1601284,2275.0,2273.7,7.64308123]
[1773672963630,7.1601284,2274.9,2273.7,7.64308123]
[1773672964032,7.16432559,2274.9,2273.7,7.64308123]
[1773672964433,15.02932559,2274.9,2273.7,7.64308123]
[1773672964632,7.16432559,2274.9,2273.7,7.64308123]
[1773672964828,15.02932559,2274.9,2273.7,7.64308123]
[1773672965035,7.16432559,2274.9,2273.7,7.64308123]
[1773672965738,7.1601284,2274.8,2273.7,7.64308123]
[1773672966335,7.1601284,2274.6,2273.2,7.64308123]
[1773672966637,7.16432559,2274.9,2273.6,7.64308123]
[1773672966834,7.16432559,2274.9,2273.8,7.64308123]